Cogmind - Beta 16.1 @@@ ROGUE MODE // 2026.02.09 @ 21:52:50 Player: TheSkyeDoctor Result: Destroyed by X-57 Shotgunner with Shotgun Performance ------------- Evolutions (2) 1000 Regions Visited (3) 600 Robots Destroyed (52) 260 Value Destroyed (1482) 1482 Prototype IDs (1) 20 Alien Tech Used (0) 0 Bonus (0) 0 TOTAL SCORE: 3362 Bonus ------- None Cogmind --------- Core Integrity 0/550 Matter 87/300 Energy 42/100 System Corruption 0% Temperature Cool (0) Movement Core (1450) Ox28 Location -8/Materials Parts ------- > --- POWER (1) -------- (None) > --- PROPULSION (4) --- (None) > --- UTILITY (4) ------ Huge Storage Unit Visual Processing Unit Trap Extractor (0/4) Trap Extractor (0/4) > --- WEAPON (2) ------- Heavy Hammer > --- INVENTORY (25) --- Improved Heat Sink Visual Processing Unit Improved Terrain Scanner Hacking Suite EM Shotgun Particle Gun Peak State ------------ > --- POWER ------------ Light Nuclear Core > --- PROPULSION ------- Improved Treads Improved Treads Improved Treads Improved Treads > --- UTILITY ---------- Huge Storage Unit Visual Processing Unit Hardened Medium Armor Plating Hardened Medium Armor Plating > --- WEAPON ----------- Improved Assault Rifle Heavy Hammer > --- INVENTORY -------- Improved Heat Sink Visual Processing Unit Improved Terrain Scanner Light Armor Plating Hacking Suite Trap Extractor Trap Extractor EM Shotgun Particle Gun [Rating: 27] Favorites ----------- Power Ion Engine Engine Ion Engine Power Core Light Nuclear Core Propulsion Improved Treads Treads Improved Treads Wheel Wheel Utility Huge Storage Unit Device Seismic Detector Storage Huge Storage Unit Processor Visual Processing Unit Protection Medium Armor Plating Weapon Assault Rifle Energy Gun Particle Gun Energy Cannon Heavy Particle Cannon Ballistic Gun Assault Rifle Launcher Missile Launcher Impact Weapon Heavy Hammer Build | -11 -10 -9 -8 ------- Run | Yrd Mat Mat Mat Slots Evolved 4 | . . 2 2 Power . | . . . . Propulsion 2 | . . 1 1 Utility 2 | . . 1 1 Weapon . | . . . . Parts Attached 45 | 6 7 13 19 Power 5 | 1 1 2 1 Engine 4 | 1 1 2 . Core 1 | . . . 1 Reactor . | . . . . Propulsion 14 | 2 2 5 5 Treads 10 | 2 . 3 5 Leg . | . . . . Wheel 4 | . 2 2 . Hover . | . . . . Flight . | . . . . Utility 15 | 1 4 2 8 Device 5 | . 2 . 3 Storage 3 | 1 2 . . Processor 1 | . . 1 . Hackware . | . . . . Protection 6 | . . 1 5 Artifact . | . . . . Weapon 11 | 2 . 4 5 Energy Gun 3 | . . 3 . Energy Cannon 1 | . . . 1 Ballistic Gun 5 | 2 . 1 2 Ballistic Cannon . | . . . . Launcher 1 | . . . 1 Special Weapon . | . . . . Impact Weapon 1 | . . . 1 Slashing Weapon . | . . . . Piercing Weapon . | . . . . Special Melee Weapon . | . . . . Unidentified Prototypes 1 | . . . 1 Parts Lost 30 | . 1 6 23 Power 5 | . . 1 4 Propulsion 10 | . . 2 8 Utility 7 | . 1 . 6 Weapon 8 | . . 3 5 Highest Loss Streak 13 | . 1 2 13 To Critical Strikes . | . . . . Average Backups 12 | 2 4 12 17 Power 1 | . 1 1 1 Propulsion 4 | 1 2 6 4 Utility 3 | . . 2 8 Weapon 1 | . . 1 2 Tool/Special . | . . . . Unused Backups 5 | . . 1 4 Power 1 | . . . 1 Propulsion 1 | . . 1 . Utility 2 | . . . 2 Weapon 1 | . . . 1 Tool/Special . | . . . . Average Slot Usage (%) 94 | . 95 94 92 Engine 10 | . 13 11 7 Treads 17 | . 23 1 29 Wheel 11 | . 4 27 . Device 7 | . 10 5 7 Storage 10 | . 14 11 9 Processor 7 | . . 10 9 Protection 5 | . . 5 10 Energy Gun 6 | . . 8 6 Ballistic Gun 14 | . 28 12 8 Peak Build Rating 27 | 6 9 18 27 Average Rating 15 | 4 6 15 22 On Entrance 7 | . 6 9 16 Avg Prop Armor Cover (%) . | . . . . Naked Turns . | . . . . Heaviest Build 102 | 12 90 100 102 Greatest Support 92 | 40 40 69 92 Greatest Overweight (x) 29 | . 4 4 29 Average Overweight (x) 1 | . . 2 1 Largest Inventory Capacity 25 | 8 25 25 25 Average Capacity 22 | 7 16 25 25 Most Carried 22 | 5 7 18 22 Average Carried 12 | 3 4 13 17 Final Capacity 25 | 8 25 25 25 Final Carried 18 | 3 5 18 6 Class Distribution -------------------- 100% | Mutant Dominant Class ---------------- Mutant | -10/Materials Mutant | -9/Materials Mutant | -8/Materials Resources | -11 -10 -9 -8 ----------- Run | Yrd Mat Mat Mat Matter Collected 1200 | 164 376 316 344 Remotely . | . . . . Salvage Created 1537 | . 360 765 412 Parts 95 | . 18 46 31 Haulers Intercepted . | . . . . Recyclers Shooed . | . . . . Parts Field Recycled . | . . . . Retrieved Matter . | . . . . Parts Self-Destructed . | . . . . Prevented . | . . . . Parts Restored . | . . . . Kills | -11 -10 -9 -8 ------- Run | Yrd Mat Mat Mat Combat Hostiles Destroyed 47 | . 10 22 15 Melee 1 | . . . 1 Guns 41 | . 10 18 13 AOE 5 | . . 4 1 Classes Destroyed 6 | . 3 1 2 Operator 1 | . . . 1 Watcher 4 | . 1 2 1 Swarmer 19 | . 2 10 7 Grunt 19 | . 8 7 4 Sentry 6 | . . 5 1 Specialist 3 | . . . 3 Best Kill Streak 5 | . 4 4 5 Combat Bots Only 5 | . 4 4 5 Max Kills in Single Turn 4 | . 1 4 1 Gunslinging . | . . . . Exploded 4 | . . 4 1 Melee 1 | . . . 1 Uniques/NPCs Destroyed . | . . . . Combat | -11 -10 -9 -8 -------- Run | Yrd Mat Mat Mat Hostile Shots Fired 516 | . 63 117 336 Missed 167 | . 17 41 109 Hits 349 | . 46 76 227 Projectile 349 | . 46 76 227 Critical Strikes 13 | . 3 4 6 Part Disruptions 1 | . . . 1 Damage Taken 5162 | . 504 928 3730 Core 812 | . 107 145 560 Absorbed by Shields . | . . . . Regen/Repaired (Parts) 17 | . 17 . . Core Remaining (%) 73 | 100 57 63 . Volleys Fired 180 | . 38 51 91 Largest 2 | . 2 2 2 Hottest 111 | . 40 88 111 Shots Fired 312 | . 76 97 139 Gun 296 | . 76 97 123 Cannon 5 | . . . 5 Launcher 11 | . . . 11 Special . | . . . . Kinetic 210 | . 76 52 82 Thermal 70 | . . 24 46 Explosive 11 | . . . 11 Electromagnetic 21 | . . 21 . Robot Hit Streak 15 | . 11 15 7 Robot Miss Streak 4 | . 4 4 4 Penetration Max . | . . . . Secondary Targets 5 | . 1 2 2 Max Gunslinging Chain 1 | . 1 1 1 Shots Hit Robots 214 | . 55 66 93 Core Hits 88 | . 20 36 32 Critical Kills 2 | . . 2 . Critical Parts Destroyed 2 | . 1 . 1 Critical Strikes 4 | . 1 2 1 Destroy 4 | . 1 2 1 Melee Attacks 2 | . . . 2 Impact 2 | . . . 2 Slashing . | . . . . Piercing . | . . . . Sneak Attacks . | . . . . Combat Hostiles . | . . . . Follow-up Attacks . | . . . . Damage Inflicted 3903 | . 721 1070 2112 Guns 3020 | . 721 937 1362 Cannons 75 | . . . 75 Explosions 740 | . . 133 607 Melee 68 | . . . 68 Ramming . | . . . . Kinetic 2283 | . 721 532 1030 Thermal 760 | . . 353 407 Explosive 607 | . . . 607 Electromagnetic 185 | . . 185 . Impact 68 | . . . 68 Slashing . | . . . . Piercing . | . . . . Highest Corruption . | . . . . Average Corruption . | . . . . Corruption Purged . | . . . . Corruption Blocked . | . . . . Overload Shots . | . . . . Overflow Damage 7 | . . . 7 Projectiles 7 | . . . 7 Explosions . | . . . . Melee . | . . . . Knockbacks . | . . . . Impact . | . . . . Kinetic . | . . . . Secondary . | . . . . Self-Inflicted Damage 51 | . . . 51 Shots 1 | . . . 1 Rammed . | . . . . Targets Rammed . | . . . . Kicked . | . . . . Crushed . | . . . . Highest Temperature 428 | . 26 113 428 Average Temperature 77 | . 9 26 102 Received Heat Transfer 912 | . 255 270 387 Effects 6 | . . . 6 Shutdowns 2 | . . . 2 Energy Bleed 1 | . . . 1 Interference 2 | . . . 2 Damage (minor) 1 | . . . 1 Siege Activations . | . . . . Martial Activations . | . . . . Shielding Activations . | . . . . Robots Disrupted . | . . . . Combat Hostiles . | . . . . Robots Corrupted . | . . . . Combat Hostiles . | . . . . Parts Fried . | . . . . Impact Corruptions . | . . . . Robots Melted . | . . . . Combat Hostiles . | . . . . Parts Melted 1 | . . 1 . Heat Transferred 1543 | . . 618 925 Parts Sabotaged . | . . . . Parts Stolen . | . . . . Parts Stripped . | . . . . Power Chain Reactions 1 | . . 1 . Alert | -11 -10 -9 -8 ------- Run | Yrd Mat Mat Mat Maximum Alert Level 1 | . . 1 . Low Security (%) 92 | 100 100 80 100 Level 1 7 | . . 19 . Level 2 . | . . . . Level 3 . | . . . . Level 4 . | . . . . Level 5 . | . . . . High Security . | . . . . Max Security . | . . . . Peak Influence 240 | . 112 240 123 Initial 88 | . . 43 88 Average 58 | . 35 84 50 Influence Increases 1352 | . 294 598 460 Destroy 0b10 Robot/C 940 | . 200 440 300 Destroy 0b10 Robot/NC 25 | . 5 10 10 Destroy Leader 208 | . 42 104 62 Successful Hack 30 | . 2 7 21 Disable Machine 45 | . . 30 15 Destroy Structure 44 | . . 7 37 Partial Spotted 15 | . 15 . . Lose Combat Pursuer 45 | . 30 . 15 Influence Decreases 1352 | . 190 492 670 Entered New Map 183 | . . 61 122 Time Decay 891 | . 180 371 340 Lost Part 215 | . 10 60 145 Purge Threat 63 | . . . 63 Squads Dispatched 9 | . 2 1 6 Investigation 2 | . 1 . 1 Extermination . | . . . . Reinforcement 7 | . 1 1 5 Assault . | . . . . Garrison . | . . . . Intercept . | . . . . Searches Triggered . | . . . . Construction Impeded . | . . . . Haulers Reinforced . | . . . . Active Scanning Responses . | . . . . Cargo Convoy Interrupts . | . . . . Stealth | -11 -10 -9 -8 --------- Run | Yrd Mat Mat Mat Distress Signals 4 | . 1 2 1 Communications Jammed . | . . . . Distress Signals . | . . . . Times Spotted 66 | . 13 29 24 Peak Tracking Total 7 | . 3 5 7 Tactical Retreats 3 | . 2 . 1 Traps | -11 -10 -9 -8 ------- Run | Yrd Mat Mat Mat Traps Triggered 2 | . . 2 . Indirectly . | . . . . Trap Hack Attempts . | . . . . Triggered . | . . . . Disarmed . | . . . . Reprogrammed . | . . . . Reused . | . . . . Traps Extracted . | . . . . Installed . | . . . . Triggered . | . . . . Machines | -11 -10 -9 -8 ---------- Run | Yrd Mat Mat Mat Machines Disabled 3 | . . 2 1 Max in Single Turn 1 | . . 1 1 Machines Repaired . | . . . . Machines Dismantled . | . . . . Machines Sabotaged . | . . . . Overloaded Fab Kills . | . . . . Hacking | -11 -10 -9 -8 --------- Run | Yrd Mat Mat Mat Machines Accessed 11 | . 4 5 2 Terminals 9 | . 3 4 2 Fabricators . | . . . . Repair Stations 1 | . 1 . . Recycling Units . | . . . . Scanalyzers 1 | . . 1 . Garrison Access . | . . . . Total Hacks 24 | . 8 11 5 Successful 9 | . 2 3 4 Failed 15 | . 6 8 1 Catastrophic 3 | . 2 1 . Database Lockouts . | . . . . Manual 4 | . 3 1 . Terminals 20 | . 5 10 5 Fabricators . | . . . . Repair Stations 3 | . 3 . . Recycling Units . | . . . . Scanalyzers 1 | . . 1 . Garrison Access . | . . . . Terminal Hacks 6 | . . 2 4 Record 1 | . . . 1 Branch Access Points 1 | . . 1 . Emergency Access Points 1 | . . 1 . Unreport Threat 2 | . . . 2 Locate Traps 1 | . . . 1 Fabricator Hacks . | . . . . Repair Station Hacks 2 | . 2 . . Scan Component 1 | . 1 . . Repair 1 | . 1 . . Recycling Unit Hacks . | . . . . Scanalyzer 1 | . . 1 . Retrieve Study 1 | . . 1 . Garrison Access Hacks . | . . . . Unauthorized Hacks . | . . . . Terminals . | . . . . Fabricators . | . . . . Repair Stations . | . . . . Recycling Units . | . . . . Scanalyzers . | . . . . Garrison Access . | . . . . Data Cores Recovered . | . . . . Used . | . . . . Hacking Detections 10 | . 4 4 2 Full Trace Events 3 | . 2 . 1 Feedback Events . | . . . . Feedback Blocked . | . . . . Robot Schematics Acquired . | . . . . Robots Built . | . . . . Authchips . | . . . . Time . | . . . . Total Robot Build Rating . | . . . . Part Schematics Acquired . | . . . . Parts Built . | . . . . Authchips . | . . . . Time . | . . . . Total Part Build Rating . | . . . . Part Studies Acquired 1 | . . 1 . Parts Repaired 1 | . 1 . . Time 26 | . 26 . . Parts Recycled . | . . . . Recycled Matter . | . . . . Retrieved Matter . | . . . . Retrieved Components . | . . . . Parts Scanalyzed . | . . . . Part Schematics Acquired . | . . . . Parts Damaged . | . . . . Bothacking | -11 -10 -9 -8 ------------ Run | Yrd Mat Mat Mat Used RIF Installer . | . . . . Robots Hacked . | . . . . Non-combat . | . . . . Combat . | . . . . Robot Hacks Applied . | . . . . Relay Couplers Released . | . . . . Fabnet Peak Effective % . | . . . . Robots Rewired . | . . . . Allies Hacked . | . . . . Hacks Repelled . | . . . . Allies | -11 -10 -9 -8 -------- Run | Yrd Mat Mat Mat Total Allies . | . . . . Largest Group . | . . . . Highest-Rated Group . | . . . . Highest-Rated Ally . | . . . . Total Orders . | . . . . Ally Attacks . | . . . . Total Damage . | . . . . Kills . | . . . . Allies Corrupted . | . . . . Allies Melted . | . . . . Intel | -11 -10 -9 -8 ------- Run | Yrd Mat Mat Mat Active Infowar (turns) 2190 | . 401 911 878 Optics 1733 | . . 911 822 Terrain 401 | . 401 . . Seismic 723 | . . . 723 Robot Analysis Total . | . . . . Derelict Logs Recovered . | . . . . Drone Launches . | . . . . Drone Recoveries . | . . . . Exploration | -11 -10 -9 -8 ------------- Run | Yrd Mat Mat Mat Turns Passed 2458 | 109 531 940 878 Spaces Moved 1124 | 66 235 537 286 Core 13 | 12 . . 1 Treads 548 | 54 192 17 285 Legs . | . . . . Wheels 563 | . 43 520 . Hover . | . . . . Flight . | . . . . Fastest Speed 50 | 50 140 113 200 Average Speed 156 | 140 156 131 206 Slowest Speed 1500 | 160 160 240 1500 Overloaded Moves . | . . . . Propulsion Burnouts . | . . . . Robots Hopped . | . . . . Potential Cave-ins . | . . . . Cave-ins Triggered . | . . . . Exploration Rate (%) 28 | 5 28 56 23 Regions Visited 3 Branch Regions . Pre-discovered Areas . | . . . . Known Exits Taken . | . . . . Unknown Exits Taken 3 | 1 1 1 . Scrap Searched . | . . . . Spaces Dug . | . . . . Terrain Destroyed 59 | . . 4 55 Melee . | . . . . Projectile 1 | . . . 1 AOE 58 | . . 4 54 Terrain Rammed . | . . . . Walls Destroyed . | . . . . Machines Disabled . | . . . . Actions | -11 -10 -9 -8 --------- Run | Yrd Mat Mat Mat Total 1517 | 82 321 675 439 Wait 87 | 3 32 35 17 Move 1121 | 65 234 536 286 Hop . | . . . . Pick Up 54 | 8 7 26 13 Fast Attach 1 | 1 . . . Attach 44 | 5 3 14 22 Detach 5 | . . 4 1 Swap 11 | . 5 3 3 Drop 12 | . 2 6 4 Fire 180 | . 38 51 91 Melee 2 | . . . 2 Ram . | . . . . Kick . | . . . . Crush . | . . . . Escape Stasis . | . . . . Rewire . | . . . . Trap . | . . . . Miscellaneous . | . . . . Route ------- -11/Scrapyard -10/Materials -9/Materials (discovered 2 exits: *Mat / Min) -8/Materials (discovered 1 exit: [*Fac]) History --------- Turn | Location | Event 20 | -11/Scrapyard | Discovered new exit (range 15) 110 | -11/Scrapyard | Entered Materials 304 | -10/Materials | Build established: Mutant 365 | -10/Materials | Repaired Ion Engine 577 | -10/Materials | Discovered new exit (range 13) 641 | -10/Materials | Entered another Materials area 641 | -9/Materials | Evolved 2 slots: Propulsion x1, Utility x1 1007 | -9/Materials | Identified exit to Mines 1559 | -9/Materials | Discovered new exit (range 10) 1581 | -9/Materials | Entered another Materials area 1581 | -8/Materials | Evolved 2 slots: Propulsion x1, Utility x1 2272 | -8/Materials | Discovered new exit (range 14) 2282 | -8/Materials | Core integrity fell below 50% 2379 | -8/Materials | Lost 13 parts (2p4n4u3w) 2408 | -8/Materials | Core integrity fell below 20% 2459 | -8/Materials | Destroyed by X-57 Shotgunner with Shotgun Last Messages --------------- G-47 Trooper destroyed. Acquired 38 matter. ALERT: Suspicious intruders detected, dispatching Specialist reinforcements to area. K-01 Serf collects debris. Lgt. Armor Plating destroyed. K-01 Serf collects debris. Acquired 8 matter. Lgt. Nuclear Core destroyed. K-01 Serf collects debris. Imp. Treads+ destroyed. Hrd. Medium Armor Plating destroyed. K-01 Serf collects debris. K-01 Serf suffers critical hit (Destroy). Imp. Treads+ destroyed. K-01 Serf collects debris. X-57 Shotgunner suffers critical hit (Blast). X-57 Shotgunner knocked back. K-01 Serf collects debris. Imp. Assault Rifle destroyed. Map ----- +----------------------------------------------------+ | ??????????????????????????????????# ## #?? | | ??????????????????????????????????# + """"" #?? | | ??????????????????????????????????#### ""T"" #?? | | ?????????????????????????????????????# #?? | | ?????????????????????????????????????# #?? | | ??????????????????????????????????#### #?? | | ??????????????????????????????????# + #?? | | ??????????????????????????????????# ## #?? | | ??????????????????????????????????# ######+####### | | ??????????????????????????????#####+##### + | | ??????????????????????????????# # # """ " | | ??????????????????????????????# # # """ " | | ?????????????????????########## """" # # """ " | | ?????????????????????# # """" # # | | ?????????????????????# # """" # # = | | ?????????????????????#! """ # # # | | ?????????????????????# """"" # ! +^^# = | | ?????????????????????# """"" # % #^^#####+# | | ?????????????????????# """"" #"/######## ### == | | ?????????????????????# ""=a +[ %* | | ???????????????????### [ = " = !! | | ??????????????????## # ######## #### | | ??????????+########### ##;;### ##????##+##### # | | ???????? k # ;###;;# """ # # | | ????????? ! x #k ; + "R" + # | | ???????????? # % @ ;###### " " # # | | ????????????# H ;######?# # # | | ???????????# x % % [ #?# # | | ???????????# < # ; =!=% ; ; # | | ???????????## # ; =%% ; ##########+ | | ?????????????# # # ###??# """"" | | ?????????????# #### ####### #????# """"" | | ?????????????# # #k#??????# S #????# """"" | | ??????????????# # #???????# " ;#???# | | ???????????????#?##????????# ##???# | | ???????????????????????????###########????# | | ??????????????????????????????????????????######## | | | | | | | | | | | | | | | | | | | | | | | | | | | +----------------------------------------------------+ Best States ------------- Heat Dissipation 42 Energy Generation 14 Energy Capacity 265 Matter Stores 300 Matter Capacity 300 Sight Range 18 Terrain Scan Range 14 Terrain Scan Density 10 Armor Coverage 450 Evasion (%) 50 Recoil Reduction 4 Item Schematics ----------------- None Robot Schematics ------------------ None Fabricated ------------ Nothing Repaired ---------- Ion Engine | 71% | -10/Materials Studied --------- Imp. Treads | -9/Materials | Hacked Alien Tech Used ----------------- None Achievements -------------- None Challenges ------------ None Game ------ Seed WaveClaymoresMultitool Manual? 0 Play Time 00:25:37 Cumulative 12.0 hours Start 2026.02.09 @ 21:27:27 End 2026.02.09 @ 21:52:50 Sessions 1 Manual Loads 0 Difficulty Rogue Special Mode None Game No. 25 Rogue 25 Adventurer 0 Explorer 0 Win Type - Total 0 Types 0/0/0/0/0/0/0/0/0/0 Lore% 12 Gallery% 17 Achievement% 14 Wizard Run 0 Options --------- Layout 1 ASCII 0 Keyboard 0 Movement Mouse Keybinds 0 Fullscreen 1 Font 24/Smallcaps Map View 50x35 Zoom Use 0% Tactical HUD 0 Map Filters NONE Filters NONE Steam 1 RUN: a49c1a27-ffe4-4d1d-94b5-aee524a4aa29